Cogmind - Beta 15 @@@ ROGUE MODE // 2025.08.30 @ 07:34:52 Player: beans Result: Destroyed by X-62 Marksman with Gauss Rifle Performance ------------- Evolutions (2) 1000 Regions Visited (3) 600 Robots Destroyed (105) 525 Value Destroyed (2571) 2571 Prototype IDs (2) 40 Alien Tech Used (0) 0 Bonus (265) 265 TOTAL SCORE: 5001 Bonus ------- High Alert Combat Kills 265 Cogmind --------- Core Integrity 0/550 Matter 16/300 Energy 100/100 System Corruption 3% Temperature Cool (0) Movement Core (50) Location -8/Materials Parts ------- > --- POWER (1) -------- (None) > --- PROPULSION (2) --- (None) > --- UTILITY (5) ------ Improved Signal Interpreter Transport Network Coupler > --- WEAPON (3) ------- (None) > --- INVENTORY (5) ---- Autogun Peak State ------------ > --- POWER ------------ Cooled Ion Engine > --- PROPULSION ------- Armored Treads Armored Treads > --- UTILITY ---------- Improved Signal Interpreter Transport Network Coupler Advanced Targeting Computer Hacking Suite > --- WEAPON ----------- Ion Cannon Minigun Gauss Rifle > --- INVENTORY -------- Autogun Improved Assault Rifle Improved Assault Rifle Improved Assault Rifle Mini Grenade Launcher [Rating: 30] Favorites ----------- Power Cooled Ion Engine Engine Cooled Ion Engine Propulsion Light Treads Treads Light Treads Utility Transport Network Coupler Processor Transport Network Coupler Hackware Hacking Suite Protection Medium Armor Plating Weapon Improved Assault Rifle Energy Cannon Ion Cannon Ballistic Gun Improved Assault Rifle Launcher Grenade Launcher Build | -11 -10 -9 -8 ------- Run | Yrd Mat Mat Mat Slots Evolved 4 | . . 2 2 Power . | . . . . Propulsion . | . . . . Utility 3 | . . 2 1 Weapon 1 | . . . 1 Parts Attached 32 | 5 3 13 11 Power 4 | 1 . 1 2 Engine 4 | 1 . 1 2 Core . | . . . . Reactor . | . . . . Propulsion 6 | 2 . 2 2 Treads 6 | 2 . 2 2 Leg . | . . . . Wheel . | . . . . Hover . | . . . . Flight . | . . . . Utility 8 | . 2 4 2 Device . | . . . . Storage . | . . . . Processor 6 | . 2 2 2 Hackware 1 | . . 1 . Protection 1 | . . 1 . Artifact . | . . . . Weapon 14 | 2 1 6 5 Energy Gun . | . . . . Energy Cannon 1 | . . . 1 Ballistic Gun 11 | 2 . 5 4 Ballistic Cannon . | . . . . Launcher 2 | . 1 1 . Special Weapon . | . . . . Impact Weapon . | . . . . Slashing Weapon . | . . . . Piercing Weapon . | . . . . Special Melee Weapon . | . . . . Unidentified Prototypes 2 | . . 2 . Parts Lost 24 | . 2 3 19 Power 4 | . . 1 3 Propulsion 6 | . 1 1 4 Utility 4 | . 1 . 3 Weapon 10 | . . 1 9 Highest Loss Streak 6 | . 2 2 6 To Critical Strikes . | . . . . Average Backups 3 | . 1 3 3 Power . | . . . . Propulsion . | . . . . Utility . | . . . . Weapon 2 | . . 3 3 Tool/Special . | . . . . Unused Backups . | . . . . Power . | . . . . Propulsion . | . . . . Utility . | . . . . Weapon . | . . . . Tool/Special . | . . . . Average Slot Usage (%) 77 | . 86 71 81 Engine 9 | . 14 9 8 Treads 13 | . 24 10 14 Processor 21 | . 18 22 21 Hackware 7 | . . 7 9 Protection 1 | . . . 3 Energy Cannon 1 | . . . 2 Ballistic Gun 21 | . 24 20 20 Launcher 1 | . 3 1 1 Peak Build Rating 30 | 5 7 18 30 Average Rating 16 | 3 6 13 22 On Entrance 7 | . 5 5 18 Naked Turns . | . . . . Heaviest Build 24 | 7 9 21 24 Greatest Support 40 | 40 40 40 40 Greatest Overweight (x) 5 | . . 4 5 Average Overweight (x) . | . . . . Largest Inventory Capacity 5 | 5 5 5 5 Average Capacity 5 | 5 5 5 5 Most Carried 5 | 3 3 5 5 Average Carried 3 | . 1 3 3 Final Capacity 5 | 5 5 5 5 Final Carried 5 | . 3 5 1 Class Distribution -------------------- 65% | Mutant 32% | Gunner Dominant Class ---------------- Mutant | -10/Materials Mutant | -9/Materials Gunner | -8/Materials Resources | -11 -10 -9 -8 ----------- Run | Yrd Mat Mat Mat Matter Collected 1950 | 147 82 1085 636 Remotely . | . . . . Salvage Created 3199 | . 172 1598 1429 Parts 196 | . 8 109 79 Haulers Intercepted 10 | . . 5 5 Recyclers Shooed 3 | . . 3 . Parts Field Recycled . | . . . . Retrieved Matter . | . . . . Parts Self-Destructed . | . . . . Prevented . | . . . . Kills | -11 -10 -9 -8 ------- Run | Yrd Mat Mat Mat Combat Hostiles Destroyed 65 | . 5 26 34 Guns 39 | . 4 19 16 Cannons 2 | . . . 2 AOE 24 | . 1 7 16 Classes Destroyed 14 | . 2 9 3 Worker 7 | . . 4 3 Builder 8 | . . 4 4 Tunneler 1 | . . 1 . Hauler 10 | . . 5 5 Recycler 3 | . . 3 . Mechanic 2 | . . 2 . Operator 2 | . . 1 1 Watcher 7 | . 1 5 1 Swarmer 15 | . . 6 9 Grunt 34 | . 5 14 15 Brawler 4 | . . . 4 Protector 1 | . . . 1 Sentry 10 | . . 6 4 Hunter 1 | . . . 1 Best Kill Streak 16 | . 4 16 10 Combat Bots Only 7 | . 4 5 7 Max Kills in Single Turn 3 | . 1 2 3 Gunslinging 1 | . . . 1 Exploded 3 | . 1 2 3 Melee . | . . . . Uniques/NPCs Destroyed . | . . . . Combat | -11 -10 -9 -8 -------- Run | Yrd Mat Mat Mat Hostile Shots Fired 357 | . 50 122 185 Missed 99 | . 12 39 48 Hits 258 | . 38 83 137 Melee 1 | . . . 1 Projectile 257 | . 38 83 136 Critical Strikes 10 | . . 5 5 Damage Taken 3952 | . 444 1139 2369 Core 993 | . 71 362 560 Absorbed by Shields . | . . . . Core Remaining (%) 60 | 100 71 9 . Volleys Fired 232 | . 30 110 92 Largest 3 | . 2 2 3 Hottest 113 | . 40 53 113 Shots Fired 473 | . 56 200 217 Gun 404 | . 52 178 174 Cannon 25 | . . . 25 Launcher 44 | . 4 22 18 Special . | . . . . Kinetic 404 | . 52 178 174 Thermal 25 | . . . 25 Explosive 44 | . 4 22 18 Electromagnetic . | . . . . Robot Hit Streak 21 | . 11 21 13 Robot Miss Streak 8 | . 8 3 3 Penetration Max . | . . . . Secondary Targets 6 | . 1 4 1 Max Gunslinging Chain 1 | . 1 1 1 Shots Hit Robots 321 | . 36 130 155 Core Hits 187 | . 22 76 89 Critical Kills . | . . . . Critical Parts Destroyed 1 | . 1 . . Critical Strikes 1 | . 1 . . Destroy 1 | . 1 . . Melee Attacks . | . . . . Impact . | . . . . Slashing . | . . . . Piercing . | . . . . Sneak Attacks . | . . . . Combat Hostiles . | . . . . Follow-up Attacks . | . . . . Damage Inflicted 7936 | . 444 2915 4577 Guns 4169 | . 281 1904 1984 Cannons 362 | . . . 362 Explosions 3405 | . 163 1011 2231 Melee . | . . . . Ramming . | . . . . Kinetic 4169 | . 281 1904 1984 Thermal 362 | . . . 362 Explosive 3405 | . 163 1011 2231 Electromagnetic . | . . . . Impact . | . . . . Slashing . | . . . . Piercing . | . . . . Highest Corruption 3 | . . . 3 Average Corruption 3 | . . . 3 Corruption Purged . | . . . . Corruption Blocked . | . . . . Effects 6 | . . . 6 Message Errors 2 | . . . 2 Matter Fused 2 | . . . 2 Heat Flow Errors 1 | . . . 1 Energy Discharges 1 | . . . 1 Overload Shots . | . . . . Overflow Damage 124 | . 17 24 83 Projectiles . | . . . . Explosions 124 | . 17 24 83 Melee . | . . . . Knockbacks . | . . . . Impact . | . . . . Kinetic . | . . . . Secondary . | . . . . Self-Inflicted Damage 430 | . . 127 303 Shots 15 | . . 5 10 Rammed . | . . . . Targets Rammed . | . . . . Kicked . | . . . . Crushed . | . . . . Highest Temperature 448 | . 56 19 448 Average Temperature 89 | . 25 6 126 Received Heat Transfer 1713 | . 246 477 990 Effects 6 | . . . 6 Energy Bleed 1 | . . . 1 Interference 3 | . . . 3 Matter Decay 1 | . . . 1 Damage (minor) 1 | . . . 1 Siege Activations . | . . . . Martial Activations . | . . . . Shielding Activations . | . . . . Robots Disrupted . | . . . . Combat Hostiles . | . . . . Robots Corrupted . | . . . . Combat Hostiles . | . . . . Parts Fried . | . . . . Impact Corruptions . | . . . . Robots Melted . | . . . . Combat Hostiles . | . . . . Parts Melted 1 | . . . 1 Heat Transferred 564 | . . . 564 Parts Sabotaged . | . . . . Parts Stolen . | . . . . Parts Stripped . | . . . . Power Chain Reactions . | . . . . Alert | -11 -10 -9 -8 ------- Run | Yrd Mat Mat Mat Maximum Alert Level 3 | . . 2 3 Low Security (%) 24 | 100 100 10 14 Level 1 52 | . . 66 54 Level 2 19 | . . 23 21 Level 3 3 | . . . 9 Level 4 . | . . . . Level 5 . | . . . . High Security . | . . . . Max Security . | . . . . Peak Influence 752 | . 89 551 752 Initial 230 | . . 24 230 Average 304 | . 25 324 374 Influence Increases 2192 | . 139 1003 1050 Destroy 0b10 Robot/C 1280 | . 100 520 660 Destroy 0b10 Robot/NC 205 | . 5 125 75 Destroy Leader 314 | . 22 150 142 Disable Machine 120 | . . 60 60 Destroy Structure 228 | . 12 118 98 Lose Combat Pursuer 45 | . . 30 15 Influence Decreases 1518 | . 80 517 921 Entered New Map 350 | . . 35 315 Time Decay 928 | . 60 452 416 Lost Part 240 | . 20 30 190 Squads Dispatched 10 | . 1 3 6 Investigation 2 | . . 1 1 Extermination . | . . . . Reinforcement 6 | . 1 2 3 Assault 2 | . . . 2 Garrison . | . . . . Intercept . | . . . . Searches Triggered . | . . . . Construction Impeded 2 | . . 1 1 Haulers Reinforced . | . . . . Active Scanning Responses . | . . . . Cargo Convoy Interrupts . | . . . . Stealth | -11 -10 -9 -8 --------- Run | Yrd Mat Mat Mat Distress Signals 7 | . 1 5 1 Communications Jammed . | . . . . Distress Signals . | . . . . Times Spotted 100 | . 10 42 48 Peak Tracking Total 6 | . 4 5 6 Tactical Retreats 3 | . . 2 1 Traps | -11 -10 -9 -8 ------- Run | Yrd Mat Mat Mat Traps Triggered 3 | . . 2 1 Indirectly . | . . . . Trap Hack Attempts . | . . . . Triggered . | . . . . Disarmed . | . . . . Reprogrammed . | . . . . Reused . | . . . . Traps Extracted . | . . . . Installed . | . . . . Triggered . | . . . . Machines | -11 -10 -9 -8 ---------- Run | Yrd Mat Mat Mat Machines Disabled 8 | . . 4 4 Max in Single Turn 2 | . . 2 1 Machines Repaired . | . . . . Machines Dismantled . | . . . . Machines Sabotaged . | . . . . Overloaded Fab Kills . | . . . . Hacking | -11 -10 -9 -8 --------- Run | Yrd Mat Mat Mat Machines Accessed . | . . . . Terminals . | . . . . Fabricators . | . . . . Repair Stations . | . . . . Recycling Units . | . . . . Scanalyzers . | . . . . Garrison Access . | . . . . Total Hacks . | . . . . Successful . | . . . . Failed . | . . . . Catastrophic . | . . . . Database Lockouts . | . . . . Manual . | . . . . Terminals . | . . . . Fabricators . | . . . . Repair Stations . | . . . . Recycling Units . | . . . . Scanalyzers . | . . . . Garrison Access . | . . . . Terminal Hacks . | . . . . Fabricator Hacks . | . . . . Repair Station Hacks . | . . . . Recycling Unit Hacks . | . . . . Scanalyzer . | . . . . Garrison Access Hacks . | . . . . Unauthorized Hacks . | . . . . Terminals . | . . . . Fabricators . | . . . . Repair Stations . | . . . . Recycling Units . | . . . . Scanalyzers . | . . . . Garrison Access . | . . . . Data Cores Recovered . | . . . . Used . | . . . . Hacking Detections . | . . . . Full Trace Events . | . . . . Feedback Events . | . . . . Feedback Blocked . | . . . . Robot Schematics Acquired . | . . . . Robots Built . | . . . . Authchips . | . . . . Time . | . . . . Total Robot Build Rating . | . . . . Part Schematics Acquired . | . . . . Parts Built . | . . . . Authchips . | . . . . Time . | . . . . Total Part Build Rating . | . . . . Parts Repaired . | . . . . Time . | . . . . Parts Recycled . | . . . . Recycled Matter . | . . . . Retrieved Matter . | . . . . Retrieved Components . | . . . . Parts Scanalyzed . | . . . . Part Schematics Acquired . | . . . . Parts Damaged . | . . . . Bothacking | -11 -10 -9 -8 ------------ Run | Yrd Mat Mat Mat Used RIF Installer . | . . . . Robots Hacked . | . . . . Non-combat . | . . . . Combat . | . . . . Robot Hacks Applied . | . . . . Relay Couplers Released . | . . . . Fabnet Peak Effective % . | . . . . Robots Rewired . | . . . . Allies Hacked . | . . . . Hacks Repelled . | . . . . Allies | -11 -10 -9 -8 -------- Run | Yrd Mat Mat Mat Total Allies . | . . . . Largest Group . | . . . . Highest-Rated Group . | . . . . Highest-Rated Ally . | . . . . Total Orders . | . . . . Ally Attacks . | . . . . Total Damage . | . . . . Kills . | . . . . Allies Corrupted . | . . . . Allies Melted . | . . . . Intel | -11 -10 -9 -8 ------- Run | Yrd Mat Mat Mat Active Infowar (turns) 2005 | . . 1120 885 T.N.C. 2005 | . . 1120 885 Robot Analysis Total . | . . . . Derelict Logs Recovered . | . . . . Drone Launches . | . . . . Drone Recoveries . | . . . . Exploration | -11 -10 -9 -8 ------------- Run | Yrd Mat Mat Mat Turns Passed 2465 | 72 257 1120 1016 Spaces Moved 1061 | 45 109 490 417 Core 269 | 8 . 202 59 Treads 792 | 37 109 288 358 Legs . | . . . . Wheels . | . . . . Hover . | . . . . Flight . | . . . . Fastest Speed 50 | 50 160 100 50 Average Speed 162 | 140 160 158 170 Slowest Speed 300 | 160 160 250 300 Overloaded Moves . | . . . . Propulsion Burnouts . | . . . . Robots Hopped . | . . . . Potential Cave-ins . | . . . . Cave-ins Triggered . | . . . . Exploration Rate (%) 34 | 4 29 61 42 Regions Visited 3 Branch Regions . Pre-discovered Areas . | . . . . Known Exits Taken . | . . . . Unknown Exits Taken 3 | 1 1 1 . Scrap Searched . | . . . . Spaces Dug 28 | . . 28 . Terrain Destroyed 246 | . 15 127 104 Melee . | . . . . Projectile 2 | . . . 2 AOE 244 | . 15 127 102 Terrain Rammed . | . . . . Walls Destroyed . | . . . . Machines Disabled . | . . . . Actions | -11 -10 -9 -8 --------- Run | Yrd Mat Mat Mat Total 1389 | 54 146 639 550 Wait 22 | . . 8 14 Move 1058 | 44 108 489 417 Hop . | . . . . Pick Up 27 | 5 5 11 6 Fast Attach 7 | . . 4 3 Attach 23 | 5 2 6 10 Detach . | . . . . Swap 15 | . 1 7 7 Drop 5 | . . 4 1 Fire 232 | . 30 110 92 Melee . | . . . . Ram . | . . . . Kick . | . . . . Crush . | . . . . Escape Stasis . | . . . . Rewire . | . . . . Trap . | . . . . Miscellaneous . | . . . . Route ------- -11/Scrapyard -10/Materials (discovered 2 exits: [*Mat] / [*Min]) -9/Materials (discovered 3 exits: [*Mat] / [*Min x2]) -8/Materials (discovered 1 exit: [*Fac]) History --------- Turn | Location | Event 2 | -11/Scrapyard | Met Revision 17 4 | -11/Scrapyard | Discovered new exit (range 16) 73 | -11/Scrapyard | Entered Materials 270 | -10/Materials | Discovered new exit (range 10) 284 | -10/Materials | Discovered new exit (range 16) 301 | -10/Materials | Build established: Mutant 330 | -10/Materials | Entered another Materials area 330 | -9/Materials | Evolved 2 slots: Utility x2 639 | -9/Materials | Core integrity fell below 50% 899 | -9/Materials | Discovered new exit (range 11) 1318 | -9/Materials | Core integrity fell below 20% 1338 | -9/Materials | Discovered new exit (range 13) 1412 | -9/Materials | Discovered new exit (range 15) 1450 | -9/Materials | Entered another Materials area 1450 | -8/Materials | Evolved 2 slots: Utility x1, Weapon x1 1787 | -8/Materials | Build established: Gunner 1943 | -8/Materials | Destroyed 7 combat bots 1953 | -8/Materials | Lost 3 parts (2n1w) 2201 | -8/Materials | Destroyed 7 combat bots 2250 | -8/Materials | First assault squad dispatched 2336 | -8/Materials | Core integrity fell below 50% 2356 | -8/Materials | Destroyed 7 combat bots 2364 | -8/Materials | Lost 6 parts (1p2n1u2w) 2435 | -8/Materials | Lost 3 parts (3w) 2455 | -8/Materials | Discovered new exit (range 11) 2464 | -8/Materials | Core integrity fell below 20% 2466 | -8/Materials | Destroyed by X-62 Marksman with Gauss Rifle Last Messages --------------- T-07 Excavator is excavating. System corrupted: Matter fused (-10). Critical hit (Burn: +37). ALERT: Suspicious intruders detected, dispatching Specialist reinforcements to area. EXIT=FOUND Penetrated by Slug. T-07 Excavator is excavating. Penetrated by Slug. Imp. Assault Rifle destroyed. Hacking Suite destroyed. Penetrated by Slug. Lgt. Angular Momentum Engine destroyed. Imp. Assault Rifle destroyed. T-07 Excavator is excavating. Penetrated by Slug. Gauss Rifle destroyed. Knocked back. System corrupted: Matter fused (-8). Penetrated by Slug. Map ----- +----------------------------------------------------+ | | | | | | | | | | | | | | | | | ?????????????????????????????????????????????????? | | ?????????????????????????????????????????????????? | | ?????????????????????????????????????????????????? | | ?????????????????????????????????????????????????? | | ?????????????????????????????????????????????????? | | ?????????????????????????????????????????????????? | | ?????????????????????????????????????????????????? | | ?????????????????????????????????????????????????? | | ?????????????????????????????????????????????????? | | ???????????????????????????????####??????????????? | | ??????????????????????#####??? #??????????????? | | ??????????????????????# #???!! #??????????????? | | ??????????????????????# xx#??!!/ #??????????????? | | ??????????????????????# #? !!/ ???????????????? | | ??????????????????????+ # ?????????????????? | | ??????????????????????# H # ???????????????????? | | ??????????????????????# Y ?????????????????????? | | ??????????????????????# @#??????????????????????? | | ??????????????????????# #??????????????????????? | | ????????????????????#?# #??????????????????????? | | ??????????????????# # # % #??????????????????????? | | ??????????????????# ############+######????? | | ??????????????????## # +????? | | ???????????????????# # #????????? | | ???????????????????##?# #????????? | | ??????????????????????#;#####/####### #????????? | | ??????????????????????##???? ????# #????????? | | ???????????????????????????? ???# #????????? | | ??????????????????????????? #??# +????????? | | ???????????????????????????[! #??# #????????? | | ??????????????????????????#!! #??# #????????? | | ??????????????????????????# ???# #???????## | | ??????????????????????????########??# ##??????#% | | ??????????????????????????????????### ######## | | ??????????????????????????????????# # | | ??????????????????????????????????# + | | ??????????????????????????######### # | | ??????????????????????????# % # | | ??????????????????????????# T % # ## # | | ??????????????????????????# # # ! | | ??????????????????????????? ! | | ??????????????????????????? | +----------------------------------------------------+ Best States ------------- Heat Dissipation 31 Energy Generation 18 Energy Capacity 280 Matter Stores 300 Matter Capacity 300 Sight Range 16 Terrain Scan Density 10 Armor Coverage 225 Evasion (%) 40 Targeting Accuracy 10 Recoil Reduction 2 Offensive Hacking 10 Item Schematics ----------------- None Robot Schematics ------------------ None Fabricated ------------ Nothing Repaired ---------- Nothing Alien Tech Used ----------------- None Achievements -------------- None Challenges ------------ None Game ------ Seed SkeletonComponentFilter Manual? 0 Play Time 00:20:18 Cumulative 113.1 hours Start 2025.08.30 @ 07:18:18 End 2025.08.30 @ 07:34:52 Sessions 1 Manual Loads 0 Difficulty Rogue Special Mode None Game No. 416 Rogue 416 Adventurer 0 Explorer 0 Win Type - Total 0 Types 0/0/0/0/0/0/0/0/0/0 Lore% 44 Gallery% 44 Achievement% 31 Wizard Run 0 Options --------- Layout 2 ASCII 0 Keyboard 0 Movement Mouse Keybinds 0 Fullscreen 2 Font 24/Smallcaps Map View 50x44 Zoom Use 0% Tactical HUD 0 Map Filters NONE Filters NONE Steam 1 RUN: f33108e8-df49-4fe0-883b-e5388d9d976d